[Event "Titled Tuesday Blitz March 28 Early 2023"]
[White "Zampronha, Wladimir Camilo"]
[Black "Prohorov, Olexandr"]
[WhiteFideId "2103087"]
[BlackFideId "14105578"]
[WhiteElo "2176"]
[BlackElo "1993"]
[Result "1-0"]
[Round "05"]
[TimeControl "180+2"]
[Date "2023.03.28"]
[WhiteClock "0:00:19"]
[BlackClock "0:00:07"]

1. e4 {[%clk 0:03:00]}  c5 {[%clk 0:03:00]} 2. Nf3 {[%clk 0:03:00]}  e6 {[%clk 0:02:56]} 3. d4 {[%clk 0:03:00]}  cxd4 {[%clk 0:02:57]} 4. Nxd4 {[%clk 0:03:00]}  Qb6 {[%clk 0:02:57]} 5. Nb3 {[%clk 0:02:58]}  Nf6 {[%clk 0:02:57]} 6. Nc3 {[%clk 0:02:57]}  Bb4 {[%clk 0:02:57]} 7. Bd3 {[%clk 0:02:55]}  d5 {[%clk 0:02:57]} 8. exd5 {[%clk 0:02:55]}  Nxd5 {[%clk 0:02:58]} 9. Bd2 {[%clk 0:02:52]}  Nxc3 {[%clk 0:02:58]} 10. bxc3 {[%clk 0:02:51]}  Be7 {[%clk 0:02:58]} 11. O-O {[%clk 0:02:44]}  O-O {[%clk 0:02:57]} 12. Re1 {[%clk 0:02:18]}  Nd7 {[%clk 0:02:56]} 13. Re3 {[%clk 0:02:14]}  e5 {[%clk 0:02:51]} 14. Qh5 {[%clk 0:01:45]}  g6 {[%clk 0:02:09]} 15. Qh6 {[%clk 0:01:43]}  Re8 {[%clk 0:02:08]} 16. Rae1 {[%clk 0:01:29]}  Bf8 {[%clk 0:02:04]} 17. Qh4 {[%clk 0:01:28]}  Bg7 {[%clk 0:01:59]} 18. R3e2 {[%clk 0:00:53]}  a5 {[%clk 0:01:49]} 19. Nc1 {[%clk 0:00:46]}  a4 {[%clk 0:01:41]} 20. Kh1 {[%clk 0:00:37]}  Nc5 {[%clk 0:01:35]} 21. f4 {[%clk 0:00:32]}  Bf6 {[%clk 0:01:09]} 22. Qf2 {[%clk 0:00:24]}  Bg4 {[%clk 0:01:03]} 23. Re3 {[%clk 0:00:19]}  Rad8 {[%clk 0:00:56]} 24. fxe5 {[%clk 0:00:17]}  Bg5 {[%clk 0:00:54]} 25. Qg3 {[%clk 0:00:10]}  Bxe3 {[%clk 0:00:48]} 26. Bxe3 {[%clk 0:00:10]}  Be6 {[%clk 0:00:46]} 27. Bd4 {[%clk 0:00:10]}  Qc7 {[%clk 0:00:43]} 28. h4 {[%clk 0:00:09]}  b6 {[%clk 0:00:35]} 29. h5 {[%clk 0:00:08]}  Qe7 {[%clk 0:00:31]} 30. h6 {[%clk 0:00:07]}  Qf8 {[%clk 0:00:24]} 31. Qg5 {[%clk 0:00:06]}  Qe7 {[%clk 0:00:17]} 32. Qf4 {[%clk 0:00:05]}  Bd5 {[%clk 0:00:11]} 33. Ne2 {[%clk 0:00:05]}  Nxd3 {[%clk 0:00:11]} 34. cxd3 {[%clk 0:00:05]}  Bxa2 {[%clk 0:00:11]} 35. Ng3 {[%clk 0:00:04]}  Bd5 {[%clk 0:00:08]} 36. Nh5 {[%clk 0:00:03]}  gxh5 {[%clk 0:00:04]} 37. Re3 {[%clk 0:00:04]}  f5 {[%clk 0:00:01]} 38. Rg3+ {[%clk 0:00:03]}  Kh8 {[%clk 0:00:02]} 39. Rg7 {[%clk 0:00:04]}  Qxg7 {[%clk 0:00:02]} 40. hxg7+ {[%clk 0:00:03]}  Kxg7 {[%clk 0:00:03]} 41. Qg5+ {[%clk 0:00:03]}  Kf7 {[%clk 0:00:03]} 42. Qxf5+ {[%clk 0:00:03]}  Kg8 {[%clk 0:00:03]} 43. e6 {[%clk 0:00:03]}  Rxe6 {[%clk 0:00:03]} 44. Qg5+ {[%clk 0:00:04]}  Kf7 {[%clk 0:00:03]} 45. Qxd8 {[%clk 0:00:04]}  Re1+ {[%clk 0:00:03]} 46. Kh2 {[%clk 0:00:04]}  Re2 {[%clk 0:00:04]} 47. Qd7+ {[%clk 0:00:04]}  Kg6 {[%clk 0:00:04]} 48. Qd6+ {[%clk 0:00:04]}  Be6 {[%clk 0:00:03]} 49. Qg3+ {[%clk 0:00:04]}  Kf7 {[%clk 0:00:02]} 50. Qf3+ {[%clk 0:00:05]}  Ke7 {[%clk 0:00:01]} 51. Qxe2 {[%clk 0:00:06]}  a3 {[%clk 0:00:02]} 52. Qe3 {[%clk 0:00:07]}  a2 {[%clk 0:00:02]} 53. Qc1 {[%clk 0:00:07]}  Kd6 {[%clk 0:00:02]} 54. Qa1 {[%clk 0:00:08]}  b5 {[%clk 0:00:01]} 55. c4 {[%clk 0:00:09]}  b4 {[%clk 0:00:01]} 56. Bb2 {[%clk 0:00:10]}  b3 {[%clk 0:00:01]} 57. Kg3 {[%clk 0:00:10]}  Bf5 {[%clk 0:00:01]} 58. Kh4 {[%clk 0:00:11]}  Bxd3 {[%clk 0:00:01]} 59. c5+ {[%clk 0:00:11]}  Kxc5 {[%clk 0:00:01]} 60. Kxh5 {[%clk 0:00:11]}  Kc4 {[%clk 0:00:02]} 61. g4 {[%clk 0:00:12]}  Bb1 {[%clk 0:00:02]} 62. g5 {[%clk 0:00:13]}  Kd3 {[%clk 0:00:02]} 63. Kh6 {[%clk 0:00:14]}  Ke2 {[%clk 0:00:02]} 64. Kg7 {[%clk 0:00:14]}  Kd1 {[%clk 0:00:02]} 65. Kf6 {[%clk 0:00:15]}  Kc2 {[%clk 0:00:02]} 66. Bd4 {[%clk 0:00:15]}  Kd3 {[%clk 0:00:02]} 67. Be5 {[%clk 0:00:16]}  Ke4 {[%clk 0:00:03]} 68. Qb2 {[%clk 0:00:17]}  Kf3 {[%clk 0:00:04]} 69. Qd4 {[%clk 0:00:17]}  Ke2 {[%clk 0:00:04]} 70. Qf4 {[%clk 0:00:18]}  Kd3 {[%clk 0:00:04]} 71. Ba1 {[%clk 0:00:17]}  Kc2 {[%clk 0:00:04]} 72. Qe5 {[%clk 0:00:18]}  Kd3 {[%clk 0:00:04]} 73. Qb2 {[%clk 0:00:19]}  Ke4 {[%clk 0:00:04]} 74. Qxb3 {[%clk 0:00:20]}  Bc2 {[%clk 0:00:03]} 75. Qb2 {[%clk 0:00:20]}  Kd3 {[%clk 0:00:03]} 76. Qc1 {[%clk 0:00:21]}  Bd1 {[%clk 0:00:03]} 77. Qxd1+ {[%clk 0:00:20]}  Ke4 {[%clk 0:00:04]} 78. Qc1 {[%clk 0:00:21]}  Kf3 {[%clk 0:00:05]} 79. Qb2 {[%clk 0:00:21]}  Kg4 {[%clk 0:00:06]} 80. Qxa2 {[%clk 0:00:21]}  Kh5 {[%clk 0:00:07]} 81. Qf7+ {[%clk 0:00:20]}  Kg4 {[%clk 0:00:07]} 82. Qxh7 {[%clk 0:00:20]}  Kg3 {[%clk 0:00:06]} 83. g6 {[%clk 0:00:21]}  Kg4 {[%clk 0:00:07]} 84. g7 {[%clk 0:00:21]}  Kf4 {[%clk 0:00:08]} 85. Qh4+ {[%clk 0:00:20]}  Kf3 {[%clk 0:00:08]} 86. g8=Q {[%clk 0:00:19]}  Ke2 {[%clk 0:00:08]} 87. Qg2+ {[%clk 0:00:19]}  Kd3 {[%clk 0:00:06]} 88. Qgg3+ {[%clk 0:00:19]}  Kc2 {[%clk 0:00:06]} 89. Qhh2+ {[%clk 0:00:19]}  Kb1 {[%clk 0:00:07]} 90. Qgg1# {[%clk 0:00:19]} 1-0


[Site "https://www.chess.com"]

[Event "Titled Tuesday Blitz March 28 Early 2023"]
[White "Zeynalli, Rashad"]
[Black "Hartikainen, Jarmo"]
[WhiteFideId "13403320"]
[BlackFideId "503134"]
[WhiteElo "2125"]
[BlackElo "2174"]
[Result "1-0"]
[Round "05"]
[TimeControl "180+2"]
[Date "2023.03.28"]
[WhiteClock "0:01:10"]
[BlackClock "0:00:06"]

1. e4 {[%clk 0:01:38]}  c5 {[%clk 0:02:57]} 2. Nf3 {[%clk 0:01:37]}  Nc6 {[%clk 0:02:57]} 3. d4 {[%clk 0:01:38]}  cxd4 {[%clk 0:02:57]} 4. Nxd4 {[%clk 0:01:39]}  Nf6 {[%clk 0:02:57]} 5. Nc3 {[%clk 0:01:39]}  d6 {[%clk 0:02:58]} 6. Bg5 {[%clk 0:01:39]}  e6 {[%clk 0:02:57]} 7. Qd2 {[%clk 0:01:39]}  a6 {[%clk 0:02:58]} 8. O-O-O {[%clk 0:01:39]}  Bd7 {[%clk 0:02:58]} 9. f4 {[%clk 0:01:40]}  h6 {[%clk 0:02:58]} 10. Bh4 {[%clk 0:01:40]}  g5 {[%clk 0:02:58]} 11. fxg5 {[%clk 0:01:39]}  Ng4 {[%clk 0:02:58]} 12. Be2 {[%clk 0:01:34]}  Nge5 {[%clk 0:02:25]} 13. Rhf1 {[%clk 0:01:33]}  Be7 {[%clk 0:02:03]} 14. Kb1 {[%clk 0:01:33]}  hxg5 {[%clk 0:02:00]} 15. Bg3 {[%clk 0:01:32]}  Qc7 {[%clk 0:01:56]} 16. h3 {[%clk 0:01:25]}  O-O-O {[%clk 0:01:54]} 17. Qe3 {[%clk 0:01:24]}  Kb8 {[%clk 0:01:42]} 18. Nb3 {[%clk 0:01:20]}  Rc8 {[%clk 0:01:01]} 19. Na4 {[%clk 0:01:18]}  Na5 {[%clk 0:00:40]} 20. Nb6 {[%clk 0:01:15]}  Nac4 {[%clk 0:00:14]} 21. Nxc4 {[%clk 0:01:09]}  Nxc4 {[%clk 0:00:14]} 22. Bxc4 {[%clk 0:01:10]}  Qxc4 {[%clk 0:00:15]} 23. Qd3 {[%clk 0:01:08]}  Qxd3 {[%clk 0:00:14]} 24. Rxd3 {[%clk 0:01:09]}  Rc6 {[%clk 0:00:09]} 25. Rxf7 {[%clk 0:01:09]}  Re8 {[%clk 0:00:06]} 26. Rxe7 {[%clk 0:01:09]}  Rxe7 {[%clk 0:00:05]} 27. Bxd6+ {[%clk 0:01:10]}  Kc8 {[%clk 0:00:05]} 28. Bxe7 {[%clk 0:01:09]}  g4 {[%clk 0:00:05]} 29. hxg4 {[%clk 0:01:09]}  e5 {[%clk 0:00:06]} 30. g5 {[%clk 0:01:08]}  Re6 {[%clk 0:00:06]} 31. Bf6 {[%clk 0:01:07]}  Re8 {[%clk 0:00:06]} 32. Nc5 {[%clk 0:01:07]}  Bg4 {[%clk 0:00:06]} 33. g6 {[%clk 0:01:07]}  Rg8 {[%clk 0:00:06]} 34. g7 {[%clk 0:01:07]}  b5 {[%clk 0:00:06]} 35. Rd8+ {[%clk 0:01:07]}  Rxd8 {[%clk 0:00:05]} 36. Bxd8 {[%clk 0:01:08]}  Be6 {[%clk 0:00:05]} 37. g8=Q {[%clk 0:01:09]}  Bxg8 {[%clk 0:00:05]} 38. Bf6 {[%clk 0:01:09]}  Bf7 {[%clk 0:00:05]} 39. Bxe5 {[%clk 0:01:09]}  Bg6 {[%clk 0:00:05]} 40. g4 {[%clk 0:01:08]}  a5 {[%clk 0:00:06]} 41. g5 {[%clk 0:01:09]}  Kd8 {[%clk 0:00:06]} 42. b3 {[%clk 0:01:08]}  Ke8 {[%clk 0:00:06]} 43. c4 {[%clk 0:01:07]}  Ke7 {[%clk 0:00:07]} 44. cxb5 {[%clk 0:01:07]}  Be8 {[%clk 0:00:07]} 45. b6 {[%clk 0:01:07]}  Bc6 {[%clk 0:00:06]} 46. g6 {[%clk 0:01:07]}  a4 {[%clk 0:00:06]} 47. g7 {[%clk 0:01:08]}  axb3 {[%clk 0:00:06]} 48. axb3 {[%clk 0:01:08]}  Bxe4+ {[%clk 0:00:06]} 49. Nxe4 {[%clk 0:01:08]}  Kf7 {[%clk 0:00:07]} 50. b7 {[%clk 0:01:08]}  Ke7 {[%clk 0:00:07]} 51. b8=Q {[%clk 0:01:08]}  Kd7 {[%clk 0:00:08]} 52. Qd6+ {[%clk 0:01:08]}  Kc8 {[%clk 0:00:06]} 53. g8=Q+ {[%clk 0:01:09]}  Kb7 {[%clk 0:00:06]} 54. Qgb8# {[%clk 0:01:10]} 1-0


[Site "https://www.chess.com"]

[Event "Titled Tuesday Blitz March 28 Early 2023"]
[White "Fathy, Elameir"]
[Black "Tarnowska, Aleksandra"]
[WhiteFideId "10600396"]
[BlackFideId "1180967"]
[WhiteElo "2311"]
[BlackElo "1776"]
[Result "1-0"]
[Round "05"]
[TimeControl "180+2"]
[Date "2023.03.28"]
[WhiteClock "0:00:48"]
[BlackClock "0:00:01"]

1. d4 {[%clk 0:02:44]}  d5 {[%clk 0:02:54]} 2. c4 {[%clk 0:02:45]}  e6 {[%clk 0:02:47]} 3. Nf3 {[%clk 0:02:44]}  Nf6 {[%clk 0:02:47]} 4. g3 {[%clk 0:02:44]}  Bb4+ {[%clk 0:02:47]} 5. Nbd2 {[%clk 0:02:44]}  Be7 {[%clk 0:02:48]} 6. Bg2 {[%clk 0:02:44]}  O-O {[%clk 0:02:49]} 7. O-O {[%clk 0:02:45]}  c5 {[%clk 0:02:34]} 8. cxd5 {[%clk 0:02:37]}  Nxd5 {[%clk 0:02:26]} 9. dxc5 {[%clk 0:02:35]}  Bxc5 {[%clk 0:02:25]} 10. Nc4 {[%clk 0:02:28]}  Nc6 {[%clk 0:02:14]} 11. a3 {[%clk 0:02:19]}  Nb6 {[%clk 0:01:10]} 12. Qc2 {[%clk 0:02:17]}  Nxc4 {[%clk 0:00:53]} 13. Qxc4 {[%clk 0:02:18]}  Qe7 {[%clk 0:00:43]} 14. Rd1 {[%clk 0:02:07]}  h6 {[%clk 0:00:42]} 15. b4 {[%clk 0:02:02]}  Bb6 {[%clk 0:00:40]} 16. Bb2 {[%clk 0:01:52]}  e5 {[%clk 0:00:23]} 17. Bc3 {[%clk 0:01:40]}  Bf5 {[%clk 0:00:22]} 18. b5 {[%clk 0:01:40]}  Na5 {[%clk 0:00:21]} 19. Qa4 {[%clk 0:01:40]}  e4 {[%clk 0:00:05]} 20. Nh4 {[%clk 0:01:38]}  Bh7 {[%clk 0:00:02]} 21. Bxa5 {[%clk 0:01:36]}  Bc5 {[%clk 0:00:01]} 22. Bf1 {[%clk 0:01:13]}  g5 {[%clk 0:00:02]} 23. Ng2 {[%clk 0:01:13]}  e3 {[%clk 0:00:02]} 24. f3 {[%clk 0:01:01]}  h5 {[%clk 0:00:01]} 25. Rac1 {[%clk 0:00:57]}  b6 {[%clk 0:00:01]} 26. Bb4 {[%clk 0:00:57]}  Rac8 {[%clk 0:00:01]} 27. Bxc5 {[%clk 0:00:49]}  bxc5 {[%clk 0:00:01]} 28. Qc4 {[%clk 0:00:48]} 1-0


[Site "https://www.chess.com"]

[Event "Titled Tuesday Blitz March 28 Early 2023"]
[White "Chemin, Justo Reinaldo"]
[Black "Novikova, Galina"]
[WhiteFideId "2101580"]
[BlackFideId "4157095"]
[WhiteElo "1940"]
[BlackElo "1953"]
[Result "1-0"]
[Round "05"]
[TimeControl "180+2"]
[Date "2023.03.28"]
[WhiteClock "0:01:07"]
[BlackClock "0:01:11"]

1. e4 {[%clk 0:03:00]}  e6 {[%clk 0:03:00]} 2. d4 {[%clk 0:02:59]}  d5 {[%clk 0:03:01]} 3. exd5 {[%clk 0:02:58]}  exd5 {[%clk 0:03:01]} 4. Nf3 {[%clk 0:02:58]}  Nc6 {[%clk 0:03:00]} 5. c4 {[%clk 0:02:58]}  Bg4 {[%clk 0:02:58]} 6. cxd5 {[%clk 0:02:55]}  Qxd5 {[%clk 0:02:58]} 7. Nc3 {[%clk 0:02:52]}  Bb4 {[%clk 0:02:49]} 8. Be2 {[%clk 0:02:46]}  O-O-O {[%clk 0:02:42]} 9. Be3 {[%clk 0:02:44]}  f6 {[%clk 0:02:34]} 10. O-O {[%clk 0:02:44]}  Qd7 {[%clk 0:02:35]} 11. a3 {[%clk 0:02:32]}  Bd6 {[%clk 0:02:33]} 12. b4 {[%clk 0:02:25]}  Kb8 {[%clk 0:02:27]} 13. Nb5 {[%clk 0:02:15]}  g5 {[%clk 0:02:21]} 14. d5 {[%clk 0:02:14]}  Ne5 {[%clk 0:02:09]} 15. Bxa7+ {[%clk 0:02:05]}  Ka8 {[%clk 0:02:09]} 16. Qa4 {[%clk 0:01:56]}  Qf5 {[%clk 0:01:34]} 17. Bc5+ {[%clk 0:01:38]}  Kb8 {[%clk 0:01:34]} 18. Qa7+ {[%clk 0:01:37]}  Kc8 {[%clk 0:01:34]} 19. Bxd6 {[%clk 0:01:34]}  cxd6 {[%clk 0:01:22]} 20. Rac1+ {[%clk 0:01:32]}  Kd7 {[%clk 0:01:22]} 21. Qxb7+ {[%clk 0:01:31]}  Ke8 {[%clk 0:01:23]} 22. Nxe5 {[%clk 0:01:22]}  fxe5 {[%clk 0:01:17]} 23. Bxg4 {[%clk 0:01:19]}  Qxg4 {[%clk 0:01:17]} 24. Qg7 {[%clk 0:01:10]}  Qd7 {[%clk 0:01:11]} 25. Nc7+ {[%clk 0:01:07]} 1-0


[Site "https://www.chess.com"]

[Event "Titled Tuesday Blitz March 28 Early 2023"]
[White "dorpato"]
[Black "Georg, Heinz"]
[BlackFideId "4607295"]
[WhiteElo "2034"]
[BlackElo "2233"]
[Result "0-1"]
[Round "05"]
[TimeControl "180+2"]
[Date "2023.03.28"]
[WhiteClock "0:00:04"]
[BlackClock "0:02:02"]

1. d4 {[%clk 0:03:00]}  f5 {[%clk 0:02:59]} 2. g3 {[%clk 0:02:57]}  Nf6 {[%clk 0:02:59]} 3. Bg2 {[%clk 0:02:54]}  g6 {[%clk 0:02:59]} 4. c4 {[%clk 0:02:54]}  Bg7 {[%clk 0:02:59]} 5. Nc3 {[%clk 0:02:55]}  O-O {[%clk 0:02:59]} 6. Nf3 {[%clk 0:02:55]}  d6 {[%clk 0:02:59]} 7. O-O {[%clk 0:02:54]}  Qe8 {[%clk 0:03:00]} 8. Bf4 {[%clk 0:02:53]}  c6 {[%clk 0:02:56]} 9. Qc2 {[%clk 0:02:44]}  Nh5 {[%clk 0:02:55]} 10. Bd2 {[%clk 0:02:35]}  e5 {[%clk 0:02:55]} 11. dxe5 {[%clk 0:02:31]}  dxe5 {[%clk 0:02:54]} 12. e4 {[%clk 0:02:28]}  f4 {[%clk 0:02:55]} 13. Ne2 {[%clk 0:02:16]}  fxg3 {[%clk 0:02:47]} 14. hxg3 {[%clk 0:02:06]}  Bg4 {[%clk 0:02:46]} 15. Qb3 {[%clk 0:01:54]}  Nd7 {[%clk 0:02:26]} 16. Rfe1 {[%clk 0:00:50]}  Nc5 {[%clk 0:02:23]} 17. Qe3 {[%clk 0:00:47]}  Ne6 {[%clk 0:02:14]} 18. Nh2 {[%clk 0:00:26]}  Bxe2 {[%clk 0:02:13]} 19. Qxe2 {[%clk 0:00:21]}  Nd4 {[%clk 0:02:13]} 20. Qd1 {[%clk 0:00:16]}  Rd8 {[%clk 0:02:10]} 21. Qc1 {[%clk 0:00:15]}  Qf7 {[%clk 0:02:05]} 22. f3 {[%clk 0:00:11]}  Nxg3 {[%clk 0:02:03]} 23. Qc2 {[%clk 0:00:04]}  Nxc2 {[%clk 0:02:02]} 0-1


[Site "https://www.chess.com"]

[Event "Titled Tuesday Blitz March 28 Early 2023"]
[White "Vargas, Mauricio"]
[Black "Adithya A Chullikkad"]
[WhiteFideId "4404572"]
[BlackFideId "45078734"]
[WhiteElo "2025"]
[BlackElo "1984"]
[Result "0-1"]
[Round "05"]
[TimeControl "180+2"]
[Date "2023.03.28"]
[WhiteClock "0:00:03"]
[BlackClock "0:00:39"]

1. e4 {[%clk 0:02:56]}  c5 {[%clk 0:02:56]} 2. Nc3 {[%clk 0:02:54]}  d6 {[%clk 0:02:51]} 3. f4 {[%clk 0:02:55]}  a6 {[%clk 0:02:49]} 4. Nf3 {[%clk 0:02:55]}  Nc6 {[%clk 0:02:49]} 5. d3 {[%clk 0:02:56]}  Bg4 {[%clk 0:02:45]} 6. h3 {[%clk 0:02:55]}  Bxf3 {[%clk 0:02:45]} 7. Qxf3 {[%clk 0:02:56]}  e6 {[%clk 0:02:45]} 8. Qd1 {[%clk 0:02:57]}  Be7 {[%clk 0:02:45]} 9. g3 {[%clk 0:02:56]}  Nf6 {[%clk 0:02:44]} 10. Bg2 {[%clk 0:02:56]}  d5 {[%clk 0:02:43]} 11. e5 {[%clk 0:02:55]}  Nd7 {[%clk 0:02:40]} 12. O-O {[%clk 0:02:54]}  O-O {[%clk 0:02:40]} 13. Ne2 {[%clk 0:02:53]}  Re8 {[%clk 0:02:38]} 14. c3 {[%clk 0:02:54]}  b5 {[%clk 0:02:34]} 15. Qe1 {[%clk 0:02:53]}  Rc8 {[%clk 0:02:31]} 16. Kh2 {[%clk 0:02:52]}  Qa5 {[%clk 0:02:30]} 17. a3 {[%clk 0:02:45]}  Qb6 {[%clk 0:02:26]} 18. g4 {[%clk 0:02:41]}  Na5 {[%clk 0:02:26]} 19. Rb1 {[%clk 0:02:35]}  d4 {[%clk 0:02:22]} 20. Be4 {[%clk 0:02:27]}  Nb3 {[%clk 0:02:19]} 21. g5 {[%clk 0:02:21]}  Nf8 {[%clk 0:02:16]} 22. Ng3 {[%clk 0:02:09]}  dxc3 {[%clk 0:02:12]} 23. bxc3 {[%clk 0:02:04]}  Nxc1 {[%clk 0:02:13]} 24. Qxc1 {[%clk 0:01:48]}  Qa5 {[%clk 0:02:04]} 25. Rg1 {[%clk 0:01:44]}  c4 {[%clk 0:02:03]} 26. d4 {[%clk 0:01:39]}  Bxa3 {[%clk 0:02:03]} 27. Qd1 {[%clk 0:01:22]}  Qxc3 {[%clk 0:01:55]} 28. Nh5 {[%clk 0:01:08]}  Red8 {[%clk 0:01:29]} 29. Nf6+ {[%clk 0:01:01]}  gxf6 {[%clk 0:01:29]} 30. gxf6+ {[%clk 0:00:59]}  Ng6 {[%clk 0:01:29]} 31. Qh5 {[%clk 0:00:36]}  Qd2+ {[%clk 0:00:46]} 32. Rg2 {[%clk 0:00:28]}  Qxf4+ {[%clk 0:00:45]} 33. Kh1 {[%clk 0:00:21]}  Qxe4 {[%clk 0:00:44]} 34. Qh6 {[%clk 0:00:21]}  Qxb1+ {[%clk 0:00:43]} 35. Kh2 {[%clk 0:00:21]}  Bf8 {[%clk 0:00:42]} 36. Rxg6+ {[%clk 0:00:06]}  Qxg6 {[%clk 0:00:39]} 37. Qxg6+ {[%clk 0:00:03]}  hxg6 {[%clk 0:00:39]} 0-1


[Site "https://www.chess.com"]

[Event "Titled Tuesday Blitz March 28 Early 2023"]
[White "Dubov, Daniil"]
[Black "Makarian, Rudik"]
[WhiteFideId "24126055"]
[BlackFideId "44105681"]
[WhiteElo "2802"]
[BlackElo "2436"]
[Result "1-0"]
[Round "06"]
[TimeControl "180+2"]
[Date "2023.03.28"]
[WhiteClock "0:00:23"]
[BlackClock "0:00:09"]

1. d4 {[%clk 0:03:00]}  Nf6 {[%clk 0:03:00]} 2. c4 {[%clk 0:03:00]}  g6 {[%clk 0:03:01]} 3. Nc3 {[%clk 0:03:00]}  Bg7 {[%clk 0:03:01]} 4. e4 {[%clk 0:02:59]}  d6 {[%clk 0:03:02]} 5. Nf3 {[%clk 0:02:59]}  O-O {[%clk 0:03:02]} 6. Be2 {[%clk 0:03:00]}  e5 {[%clk 0:03:01]} 7. O-O {[%clk 0:03:00]}  Na6 {[%clk 0:03:02]} 8. Re1 {[%clk 0:02:59]}  h6 {[%clk 0:02:51]} 9. Bf1 {[%clk 0:02:54]}  Bg4 {[%clk 0:02:36]} 10. d5 {[%clk 0:02:45]}  Nh7 {[%clk 0:02:31]} 11. h3 {[%clk 0:02:41]}  Bxf3 {[%clk 0:02:24]} 12. Qxf3 {[%clk 0:02:42]}  f5 {[%clk 0:02:24]} 13. Rb1 {[%clk 0:02:09]}  Nc5 {[%clk 0:02:12]} 14. b4 {[%clk 0:02:03]}  Nd7 {[%clk 0:01:55]} 15. c5 {[%clk 0:01:58]}  Ng5 {[%clk 0:01:48]} 16. Qd1 {[%clk 0:01:43]}  dxc5 {[%clk 0:01:30]} 17. bxc5 {[%clk 0:01:40]}  Nxc5 {[%clk 0:01:31]} 18. exf5 {[%clk 0:01:22]}  gxf5 {[%clk 0:01:19]} 19. Ba3 {[%clk 0:01:20]}  b6 {[%clk 0:01:19]} 20. Na4 {[%clk 0:01:15]}  e4 {[%clk 0:01:01]} 21. Nxc5 {[%clk 0:01:11]}  bxc5 {[%clk 0:01:01]} 22. Bxc5 {[%clk 0:01:12]}  Rf6 {[%clk 0:01:02]} 23. d6 {[%clk 0:00:48]}  Nf3+ {[%clk 0:00:46]} 24. gxf3 {[%clk 0:00:40]}  Rg6+ {[%clk 0:00:43]} 25. Kh1 {[%clk 0:00:40]}  Qg5 {[%clk 0:00:30]} 26. Bc4+ {[%clk 0:00:39]}  Kh7 {[%clk 0:00:31]} 27. Rg1 {[%clk 0:00:40]}  Qh4 {[%clk 0:00:29]} 28. Rxg6 {[%clk 0:00:30]}  Qxh3+ {[%clk 0:00:28]} 29. Kg1 {[%clk 0:00:31]}  Be5 {[%clk 0:00:12]} 30. f4 {[%clk 0:00:25]}  Bxf4 {[%clk 0:00:09]} 31. Rg2 {[%clk 0:00:23]} 1-0


[Site "https://www.chess.com"]

[Event "Titled Tuesday Blitz March 28 Early 2023"]
[White "Preotu, Razvan"]
[Black "So, Wesley"]
[WhiteFideId "2613280"]
[BlackFideId "5202213"]
[WhiteElo "2407"]
[BlackElo "2739"]
[Result "0-1"]
[Round "06"]
[TimeControl "180+2"]
[Date "2023.03.28"]
[WhiteClock "0:00:01"]
[BlackClock "0:00:05"]

1. e4 {[%clk 0:03:00]}  e5 {[%clk 0:02:59]} 2. Nf3 {[%clk 0:03:01]}  Nc6 {[%clk 0:03:00]} 3. Bc4 {[%clk 0:03:01]}  Nf6 {[%clk 0:02:59]} 4. d3 {[%clk 0:03:01]}  Bc5 {[%clk 0:02:59]} 5. c3 {[%clk 0:03:00]}  O-O {[%clk 0:02:58]} 6. O-O {[%clk 0:03:00]}  d6 {[%clk 0:02:56]} 7. Re1 {[%clk 0:02:58]}  Bb6 {[%clk 0:02:47]} 8. h3 {[%clk 0:02:57]}  Ne7 {[%clk 0:02:47]} 9. d4 {[%clk 0:02:43]}  Ng6 {[%clk 0:02:42]} 10. Bd3 {[%clk 0:02:41]}  Re8 {[%clk 0:02:39]} 11. Nbd2 {[%clk 0:02:30]}  c6 {[%clk 0:02:38]} 12. Bc2 {[%clk 0:02:17]}  Bc7 {[%clk 0:02:36]} 13. b4 {[%clk 0:02:04]}  d5 {[%clk 0:02:31]} 14. exd5 {[%clk 0:01:58]}  Nxd5 {[%clk 0:02:25]} 15. Bb2 {[%clk 0:01:57]}  exd4 {[%clk 0:02:02]} 16. Rxe8+ {[%clk 0:01:54]}  Qxe8 {[%clk 0:02:03]} 17. Nxd4 {[%clk 0:01:54]}  Bd7 {[%clk 0:01:57]} 18. Qf1 {[%clk 0:01:41]}  Qf8 {[%clk 0:01:52]} 19. Re1 {[%clk 0:01:42]}  Ndf4 {[%clk 0:01:45]} 20. Ne4 {[%clk 0:01:32]}  Nh4 {[%clk 0:01:37]} 21. Nc5 {[%clk 0:00:58]}  Nfxg2 {[%clk 0:01:09]} 22. Nxd7 {[%clk 0:00:55]}  Qd6 {[%clk 0:01:09]} 23. f4 {[%clk 0:00:46]}  Nxe1 {[%clk 0:00:53]} 24. Qxe1 {[%clk 0:00:44]}  Qxf4 {[%clk 0:00:53]} 25. Qf2 {[%clk 0:00:36]}  Qg5+ {[%clk 0:00:36]} 26. Kf1 {[%clk 0:00:36]}  Bg3 {[%clk 0:00:35]} 27. Qe2 {[%clk 0:00:18]}  Bd6 {[%clk 0:00:25]} 28. Qg4 {[%clk 0:00:15]}  Qxg4 {[%clk 0:00:23]} 29. hxg4 {[%clk 0:00:16]}  Rd8 {[%clk 0:00:19]} 30. Nc5 {[%clk 0:00:16]}  Bxc5 {[%clk 0:00:18]} 31. bxc5 {[%clk 0:00:17]}  Rd5 {[%clk 0:00:16]} 32. Ba3 {[%clk 0:00:14]}  Rg5 {[%clk 0:00:10]} 33. Bd1 {[%clk 0:00:07]}  Ng6 {[%clk 0:00:10]} 34. Kf2 {[%clk 0:00:07]}  Ne5 {[%clk 0:00:09]} 35. Nf3 {[%clk 0:00:06]}  Nxg4+ {[%clk 0:00:06]} 36. Kg3 {[%clk 0:00:05]}  Rg6 {[%clk 0:00:04]} 37. Nh4 {[%clk 0:00:05]}  Rg5 {[%clk 0:00:04]} 38. Bc1 {[%clk 0:00:01]}  Ne3+ {[%clk 0:00:03]} 39. Kf4 {[%clk 0:00:02]}  Rg1 {[%clk 0:00:04]} 40. Bxe3 {[%clk 0:00:01]}  Rxd1 {[%clk 0:00:04]} 41. Nf3 {[%clk 0:00:02]}  Ra1 {[%clk 0:00:04]} 42. Ne5 {[%clk 0:00:03]}  Rxa2 {[%clk 0:00:04]} 43. Nd7 {[%clk 0:00:03]}  a5 {[%clk 0:00:05]} 44. Nb6 {[%clk 0:00:03]}  a4 {[%clk 0:00:05]} 45. Ke5 {[%clk 0:00:02]}  a3 {[%clk 0:00:05]} 46. Bd4 {[%clk 0:00:03]}  Rc2 {[%clk 0:00:05]} 47. c4 {[%clk 0:00:02]}  a2 {[%clk 0:00:05]} 48. Na4 {[%clk 0:00:02]}  Rd2 {[%clk 0:00:05]} 49. Bc3 {[%clk 0:00:03]}  Rd3 {[%clk 0:00:06]} 50. Ba1 {[%clk 0:00:03]}  Rd1 {[%clk 0:00:06]} 51. Bc3 {[%clk 0:00:03]}  h5 {[%clk 0:00:05]} 52. Nb6 {[%clk 0:00:01]}  h4 {[%clk 0:00:05]} 0-1


[Site "https://www.chess.com"]